[Event "28th Bosnjaci Open 2024"]
[Site "Bosnjaci"]
[Date "2024.01.08"]
[Round "8.18"]
[White "Petricevic, Mateo"]
[Black "Starcevic, Ante Leon"]
[Result "1/2-1/2"]
[ECO "D78"]
[WhiteElo "2019"]
[BlackElo "2209"]
[Annotator "ChessBase"]
[PlyCount "37"]
[EventDate "2024.01.02"]
[EventType "swiss"]
[EventCountry "CRO"]
[SourceTitle "playchess.com"]
[Source "ChessBase"]
[SourceQuality "1"]
[TimeControl "5400+30"]

1. Nf3 {[%emt 0:00:52]} Nf6 {[%emt 0:00:06]} 2. g3 {[%emt 0:00:04]} g6 {[%emt 0:00:07]} 3. Bg2 {[%emt 0:00:06]} Bg7 {[%emt 0:00:03]} 4. O-O {[%emt 0:00:22]} O-O {[%emt 0:00:04]} 5. d4 {[%emt 0:00:06]} d5 {[%emt 0:00:03]} 6. c4 {[%emt 0:00:05]} c6 {[%emt 0:00:02]} 7. Nc3 {[%emt 0:03:46]} Ne4 {[%emt 0:00:23]} 8. Bf4 {[%emt 0:17:13]} Nxc3 {[%emt 0:00:13]} 9. bxc3 {[%emt 0:00:04]} b6 {[%emt 0:00:05]} 10. cxd5 {[%emt 0:07:45]} cxd5 {[%emt 0:00:05]} 11. Ne5 {[%emt 0:01:38]} Ba6 {[%emt 0:07:34]} 12. Re1 {[%emt 0:04:42]} Re8 {[%emt 0:05:07]} 13. Qa4 {[%emt 0:18:51]} e6 {[%emt 0:01:37]} 14. Nxf7 {[%emt 0:03:27]} Kxf7 {[%emt 0:05:29]} 15. Bxb8 {[%emt 0:00:20]} Qc8 {[%emt 0:00:08]} 16. Bf4 {[%emt 0:01:07]} Qc4 {[%emt 0:00:12]} 17. Qxc4 {[%emt 0:03:15]} Bxc4 {[%emt 0:00:05]} 18. e4 {[%emt 0:02:49]} Rac8 {[%emt 0:02:05]} 19. exd5 {[%emt 0:01:41]} 1/2-1/2

[Event "28th Bosnjaci Open 2024"]
[Site "Bosnjaci"]
[Date "2024.01.08"]
[Round "8.19"]
[White "Vasilijevic, Vili"]
[Black "Goric, Esad"]
[Result "1/2-1/2"]
[ECO "B07"]
[WhiteElo "1821"]
[BlackElo "2196"]
[Annotator "RC"]
[PlyCount "132"]
[EventDate "2024.01.02"]
[EventType "swiss"]
[EventCountry "CRO"]
[SourceTitle "playchess.com"]
[Source "ChessBase"]
[SourceQuality "1"]
[TimeControl "5400+30"]

1. d4 {[%emt 0:00:02]} Nf6 {[%emt 0:09:30]} 2. Nc3 {[%emt 0:00:20]} d6 {[%emt 0:00:14]} 3. e4 {[%emt 0:00:14]} g6 {[%emt 0:00:54]} 4. f3 {[%emt 0:00:58]} Bg7 {[%emt 0:00:04]} 5. Be3 {[%emt 0:00:23]} O-O {[%emt 0:00:39]} 6. Qd2 {[%emt 0:00:42]} e5 {[%emt 0:01:28]} 7. Nge2 {[%emt 0:03:07]} Nc6 {[%emt 0:00:11]} 8. d5 {[%emt 0:02:30]} Ne7 {[%emt 0:00:25]} 9. g4 {[%emt 0:06:22]} c6 {[%emt 0:04:15]} 10. g5 {[%emt 0:03:27]} Ne8 {[%emt 0:00:22]} 11. O-O-O {[%emt 0:03:48]} cxd5 {[%emt 0:00:24]} 12. Nxd5 {[%emt 0:01:25]} Nxd5 {[%emt 0:00:41]} 13. Qxd5 {[%emt 0:00:35]} Qc7 {[%emt 0:00:02]} 14. Nc3 {[%emt 0:02:42]} Be6 {[%emt 0:00:27]} 15. Qd2 {[%emt 0:01:01]} a6 {[%emt 0:02:16]} 16. h4 {[%emt 0:02:27]} f5 {[%emt 0:01:15]} 17. gxf6 {[%emt 0:20:02]} Nxf6 {[%emt 0:01:48]} 18. Qxd6 {[%emt 0:16:05]} Qf7 {[%emt 0:00:02]} 19. Bh3 {[%emt 0:01:16]} Bxh3 {[%emt 0:05:26]} 20. Rxh3 {[%emt 0:00:03]} Kh8 {[%emt 0:00:17]} 21. Bc5 {[%emt 0:09:07]} Rfe8 {[%emt 0:05:16]} 22. Kb1 {[%emt 0:01:28]} Rac8 {[%emt 0:01:03]} 23. Bb4 {[%emt 0:03:07]} Qc4 {[%emt 0:02:31]} 24. Ba5 {[%emt 0:03:25]} Rc6 {[%emt 0:06:08]} 25. Qb4 {[%emt 0:02:16]} Qe6 {[%emt 0:00:00]} 26. Rh2 {[%emt 0:01:50]} b6 {[%emt 0:00:00]} 27. Rhd2 {[%emt 0:01:35]} bxa5 {[%emt 0:00:04]} 28. Qxa5 {[%emt 0:00:02]} Rcc8 {[%emt 0:01:59]} 29. Nd5 {[%emt 0:02:06]} Nxd5 {[%emt 0:00:17]} 30. exd5 {[%emt 0:00:07]} Qd6 {[%emt 0:00:13]} 31. Qa4 {[%emt 0:00:34]} Rf8 {[%emt 0:01:09]} 32. Qg4 {[%emt 0:01:15]} Rb8 {[%emt 0:00:42]} 33. c4 {[%emt 0:00:45]} Rfe8 {[%emt 0:00:35]} 34. Rc2 {[%emt 0:01:35]} Rbc8 {[%emt 0:01:24]} 35. Rg1 {[%emt 0:01:13]} Rg8 {[%emt 0:02:29]} 36. Qe4 {[%emt 0:01:17]} Rgf8 {[%emt 0:00:35]} 37. Qg4 {[%emt 0:02:18]} Rce8 {[%emt 0:00:26]} 38. h5 {[%emt 0:02:05]} Rf4 {[%emt 0:00:48]} 39. Qg2 {[%emt 0:00:02]} e4 {[%emt 0:00:54]} 40. hxg6 {[%emt 0:01:21]} exf3 {[%emt 0:00:31]} 41. Qh2 {[%emt 0:00:18]} h6 {[%emt 0:00:16]} 42. c5 {[%emt 0:00:22]} Qf6 {[%emt 0:00:21]} 43. Qf2 {[%emt 0:00:40]} Qd4 {[%emt 0:01:06]} 44. d6 {[%emt 0:01:50]} Qd5 {[%emt 0:04:12]} 45. Rgc1 {[%emt 0:04:16]} Qc6 {[%emt 0:00:54]} 46. Rd1 {[%emt 0:00:10]} Rd8 {[%emt 0:01:14]} 47. Qe3 {[%emt 0:00:21]} Rf6 {[%emt 0:03:19]} 48. Qe7 {[%emt 0:00:41]} Rd7 {[%emt 0:00:13]} 49. Qe8+ {[%emt 0:00:21]} Rf8 {[%emt 0:00:03]} 50. Qe3 {[%emt 0:00:47]} Rb7 {[%emt 0:02:34]} 51. b3 {[%emt 0:00:37]} f2 {[%emt 0:01:27]} 52. Rf1 {[%emt 0:00:36]} Rbb8 {[%emt 0:00:27]} 53. Rcxf2 {[%emt 0:00:31]} Rfe8 {[%emt 0:01:19]} 54. Qd3 {[%emt 0:00:29]} Qxc5 {[%emt 0:00:16]} 55. d7 {[%emt 0:00:12]} Red8 {[%emt 0:00:23]} 56. Rf7 {[%emt 0:00:09]} Qd4 {[%emt 0:07:36]} 57. Qxd4 {[%emt 0:00:24]} Bxd4 {[%emt 0:00:03]} 58. Re7 {[%emt 0:01:03]} Kg8 {[%emt 0:01:01]} 59. Rh1 {[%emt 0:00:38]} Bf6 {[%emt 0:00:23]} 60. Rf7 {[%emt 0:00:13]} Bg7 {[%emt 0:00:35]} 61. Re1 {[%emt 0:00:16]} Bf8 {[%emt 0:00:43]} 62. Kc2 {[%emt 0:00:52]} h5 {[%emt 0:00:57]} 63. Re4 {[%emt 0:00:27]} Bg7 {[%emt 0:06:12]} 64. Ree7 {[%emt 0:00:23]} Bf8 {[%emt 0:01:46]} 65. Re4 {[%emt 0:00:03]} Bg7 {[%emt 0:19:12]} 66. Ree7 {[%emt 0:00:04]} Bf8 {[%emt 0:06:59]} 1/2-1/2

[Event "28th Bosnjaci Open 2024"]
[Site "Bosnjaci"]
[Date "2024.01.09"]
[Round "9.1"]
[White "Saric, Ante"]
[Black "Milovic, Jovan"]
[Result "1-0"]
[ECO "A43"]
[WhiteElo "2508"]
[BlackElo "2223"]
[Annotator "TA"]
[PlyCount "60"]
[EventDate "2024.01.02"]
[EventType "swiss"]
[EventCountry "CRO"]
[SourceTitle "playchess.com"]
[Source "ChessBase"]
[SourceQuality "1"]
[TimeControl "5400+30"]

{[%evp 9,60,34,24,35,41,34,40,36,41,31,25,24,58,50,64,57,73,52,90,82,77,80,84,84,116,114,175,187,356,363,429,424,578,571,562,558,551,548,575,589,581,574,554,516,506,502,504,504,486,463,492,492,443]} 1. d4 {[%emt 0:00:05]} c5 {[%emt 0:11:58]} 2. d5 {[%emt 0:00:06]} e6 {[%emt 0:00:05]} 3. Nc3 {[%emt 0:00:53]} exd5 {[%emt 0:00:31]} 4. Nxd5 {[%emt 0:00:05]} Nf6 {[%emt 0:00:06]} 5. Bg5 {[%emt 0:00:27]} Be7 {[%emt 0:00:07]} 6. Bxf6 {[%emt 0:00:06] A43: Schmid Benoni.} Bxf6 {[%emt 0:00:07]} 7. c3 {[%emt 0:00:04]} Na6 {[%emt 0:04:25] [#]} 8. g3 $146 {[%emt 0:15:20] White is slightly better.} ({Predecessor:} 8. Nh3 d6 9. Nhf4 Be5 10. e3 Nc7 11. Nxc7+ Qxc7 12. Nd5 Qd8 13. Bb5+ Bd7 14. Qa4 Bxb5 15. Qxb5+ {1-0 Li,S (2484)-Cupido,A (2045) Delft Prinsenstad op-A 2008 (1)}) 8... Nc7 {[%emt 0:03:28]} 9. Bg2 {[%emt 0:00:45]} Nxd5 {[%emt 0:00:40]} 10. Qxd5 {[%emt 0:04:58]} Qb6 {[%emt 0:01:40] Black is weak on the light squares} 11. Qd2 {[%emt 0:03:54]} d5 {[%emt 0:02:17]} 12. Bxd5 {[%emt 0:04:33]} O-O {[%emt 0:00:10]} 13. e4 {[%emt 0:02:04]} ({Of course not} 13. Nf3 Bf5 $11) 13... Rd8 {[%emt 0:07:32] White leaves nothing to chance now.} 14. Ne2 {[%emt 0:13:34]} Bh3 {[%emt 0:00:26] [#] Hoping for ...Bg2.} 15. Nf4 {[%emt 0:03:55] Inhibits Bg2.} Bg5 {[%emt 0:00:17] aiming for ...Bg2.} 16. Qe2 {[%emt 0:04:56]} Bxf4 {[%emt 0:22:22]} 17. gxf4 {[%emt 0:00:13]} Bg2 {[%emt 0:03:12]} (17... Be6 $16 18. O-O-O Bxd5 19. Rxd5 Rxd5 20. exd5 Qd6) 18. Rg1 $18 {[%emt 0:00:59]} Rxd5 $2 {[%emt 0:00:06]} (18... Bh3 {keeps fighting.} 19. Qd2 (19. Qh5 Be6 $16) 19... Be6) 19. exd5 {[%emt 0:01:54]} Bxd5 {[%emt 0:02:49]} 20. Qe5 {[%emt 0:03:42][%csl Gg1,LRd5,LRg7][%cal Re5g7] [#] White is clearly winning.} g6 {[%emt 0:00:44]} 21. Qxd5 {[%emt 0:00:19]} Qxb2 {[%emt 0:02:08]} 22. Rd1 {[%emt 0:03:29][%cal Ba1d1,Bd1d3,Bd3f3][%mdl 32]} Re8+ {[%emt 0:02:25]} 23. Kf1 {[%emt 0:00:05][%cal Be1f1,Bf1g2,Bg2h1,Bh1h2][%mdl 32]} Qe2+ {[%emt 0:00:04]} 24. Kg2 {[%emt 0:00:05]} Qg4+ {[%emt 0:00:04]} 25. Kh1 {[%emt 0:00:10]} Qxf4 {[%emt 0:00:04]} 26. Rd3 {[%emt 0:04:07]} Re5 {[%emt 0:01:22]} 27. Rf3 {[%emt 0:01:58] White threatens Qd8+ and mate.} Qxh2+ {[%emt 0:00:13]} 28. Kxh2 {[%emt 0:00:02]} Rxd5 {[%emt 0:00:06]} 29. Re1 {[%emt 0:00:41]} Rd7 {[%emt 0:00:12] Repels Re7} 30. Rfe3 {[%emt 0:00:19]} b5 {[%emt 0:02:44] Weighted Error Value: White=0.04 (flawless) /Black=0.32} 1-0

[Event "28th Bosnjaci Open 2024"]
[Site "Bosnjaci"]
[Date "2024.01.09"]
[Round "9.3"]
[White "Sajin, Mirko"]
[Black "Zaja, Ivan"]
[Result "0-1"]
[ECO "C45"]
[WhiteElo "2299"]
[BlackElo "2419"]
[Annotator "RC"]
[PlyCount "78"]
[EventDate "2024.01.02"]
[EventType "swiss"]
[EventCountry "CRO"]
[SourceTitle "playchess.com"]
[Source "ChessBase"]
[SourceQuality "1"]
[TimeControl "5400+30"]

1. e4 {[%emt 0:00:09]} e5 {[%emt 0:00:22]} 2. Nf3 {[%emt 0:00:32]} Nc6 {[%emt 0:00:10]} 3. d4 {[%emt 0:00:36]} exd4 {[%emt 0:00:08]} 4. Nxd4 {[%emt 0:00:15]} Bb4+ {[%emt 0:00:19]} 5. c3 {[%emt 0:00:38]} Bc5 {[%emt 0:00:07]} 6. Be3 {[%emt 0:00:42]} Bb6 {[%emt 0:00:04]} 7. Nf5 {[%emt 0:01:19]} Bxe3 {[%emt 0:06:40]} 8. Nxe3 {[%emt 0:00:30]} Nf6 {[%emt 0:01:30]} 9. f3 {[%emt 0:02:31]} O-O {[%emt 0:02:07]} 10. Be2 {[%emt 0:02:41]} Qe7 {[%emt 0:03:58]} 11. Nd5 {[%emt 0:08:18]} Nxd5 {[%emt 0:01:56]} 12. Qxd5 {[%emt 0:00:36]} Kh8 {[%emt 0:05:23]} 13. Nd2 {[%emt 0:17:10]} d6 {[%emt 0:01:27]} 14. O-O {[%emt 0:03:13]} f5 {[%emt 0:05:14]} 15. f4 {[%emt 0:03:20]} Be6 {[%emt 0:00:47]} 16. Qd3 {[%emt 0:01:01]} fxe4 {[%emt 0:05:43]} 17. Qxe4 {[%emt 0:02:18]} d5 {[%emt 0:04:14]} 18. Qe3 {[%emt 0:05:07]} Rae8 {[%emt 0:00:33]} 19. Bb5 {[%emt 0:04:18]} Qd6 {[%emt 0:01:48]} 20. Bxc6 {[%emt 0:02:41]} bxc6 {[%emt 0:01:23]} 21. Nb3 {[%emt 0:07:58]} a6 {[%emt 0:08:47]} 22. Qd4 {[%emt 0:09:23]} Bf5 {[%emt 0:01:51]} 23. Rae1 {[%emt 0:03:18]} Be4 {[%emt 0:05:12]} 24. g3 {[%emt 0:08:26]} Rb8 {[%emt 0:00:48]} 25. Rf2 {[%emt 0:00:46]} Rb5 {[%emt 0:00:24]} 26. Nd2 {[%emt 0:02:19]} Bf5 {[%emt 0:01:22]} 27. Nf3 {[%emt 0:00:34]} c5 {[%emt 0:00:51]} 28. Qe5 {[%emt 0:00:25]} h6 {[%emt 0:04:32]} 29. Nh4 {[%emt 0:05:09]} Be4 {[%emt 0:08:22]} 30. Qxd6 {[%emt 0:01:09]} cxd6 {[%emt 0:00:03]} 31. Rxe4 {[%emt 0:00:19]} dxe4 {[%emt 0:00:06]} 32. Ng6+ {[%emt 0:00:01]} Kg8 {[%emt 0:00:06]} 33. Nxf8 {[%emt 0:00:01]} Kxf8 {[%emt 0:00:08]} 34. c4 {[%emt 0:02:52]} Rb4 {[%emt 0:02:38]} 35. b3 {[%emt 0:00:08]} d5 {[%emt 0:01:48]} 36. cxd5 {[%emt 0:00:22]} Ke7 {[%emt 0:02:47]} 37. f5 {[%emt 0:03:46]} Rd4 {[%emt 0:01:09]} 38. g4 {[%emt 0:01:36]} e3 {[%emt 0:00:34]} 39. Rc2 {[%emt 0:01:01]} Rd1+ {[%emt 0:00:38]} 0-1

[Event "28th Bosnjaci Open 2024"]
[Site "Bosnjaci"]
[Date "2024.01.09"]
[Round "9.4"]
[White "Culum, Sanjin"]
[Black "Zovko, Mario"]
[Result "1/2-1/2"]
[ECO "C42"]
[WhiteElo "2349"]
[BlackElo "2268"]
[Annotator "RC"]
[PlyCount "61"]
[EventDate "2024.01.02"]
[EventType "swiss"]
[EventCountry "CRO"]
[SourceTitle "playchess.com"]
[Source "ChessBase"]
[SourceQuality "1"]
[TimeControl "5400+30"]

1. e4 {[%emt 0:00:12]} e5 {[%emt 0:00:20]} 2. Nf3 {[%emt 0:00:53]} Nf6 {[%emt 0:00:08]} 3. Nxe5 {[%emt 0:01:01]} d6 {[%emt 0:00:07]} 4. Nf3 {[%emt 0:00:42]} Nxe4 {[%emt 0:00:07]} 5. d4 {[%emt 0:01:26]} d5 {[%emt 0:02:09]} 6. Bd3 {[%emt 0:00:13]} Bd6 {[%emt 0:00:06]} 7. O-O {[%emt 0:00:49]} O-O {[%emt 0:00:06]} 8. c4 {[%emt 0:01:03]} c6 {[%emt 0:00:07]} 9. Nc3 {[%emt 0:00:39]} Nxc3 {[%emt 0:00:06]} 10. bxc3 {[%emt 0:00:03]} dxc4 {[%emt 0:00:07]} 11. Bxc4 {[%emt 0:00:05]} Bf5 {[%emt 0:00:07]} 12. Bg5 {[%emt 0:01:14]} Qa5 {[%emt 0:00:37]} 13. d5 {[%emt 0:00:09]} Qc7 {[%emt 0:01:28]} 14. Re1 {[%emt 0:04:46]} h6 {[%emt 0:02:02]} 15. Bh4 {[%emt 0:00:56]} Bg4 {[%emt 0:00:05]} 16. h3 {[%emt 0:06:47]} Bh5 {[%emt 0:00:11]} 17. g4 {[%emt 0:04:25]} Bg6 {[%emt 0:00:06]} 18. Kg2 {[%emt 0:02:00]} c5 {[%emt 0:11:36]} 19. Bd3 {[%emt 0:07:07]} Bxd3 {[%emt 0:09:14]} 20. Qxd3 {[%emt 0:00:06]} Nd7 {[%emt 0:00:04]} 21. Re4 {[%emt 0:09:01]} Rae8 {[%emt 0:07:49]} 22. Rae1 {[%emt 0:01:35]} Rxe4 {[%emt 0:00:10]} 23. Rxe4 {[%emt 0:00:26]} g5 {[%emt 0:02:11]} 24. Bg3 {[%emt 0:00:50]} Bxg3 {[%emt 0:00:40]} 25. fxg3 {[%emt 0:00:08]} Nf6 {[%emt 0:00:36]} 26. Re5 {[%emt 0:01:53]} Re8 {[%emt 0:06:35]} 27. Rxe8+ {[%emt 0:10:42]} Nxe8 {[%emt 0:02:19]} 28. Qe3 {[%emt 0:06:18]} Kf8 {[%emt 0:02:09]} 29. Ne5 {[%emt 0:01:44]} b6 {[%emt 0:05:56]} 30. c4 {[%emt 0:10:46]} Qe7 {[%emt 0:06:50]} 31. Qc3 {[%emt 0:06:15]} 1/2-1/2

[Event "28th Bosnjaci Open 2024"]
[Site "Bosnjaci"]
[Date "2024.01.09"]
[Round "9.5"]
[White "Hadzovic, Amir"]
[Black "Grgantov, Marin"]
[Result "1/2-1/2"]
[ECO "B01"]
[WhiteElo "2307"]
[BlackElo "1973"]
[Annotator "TA"]
[PlyCount "79"]
[EventDate "2024.01.02"]
[EventType "swiss"]
[EventCountry "CRO"]
[SourceTitle "playchess.com"]
[Source "ChessBase"]
[SourceQuality "1"]
[TimeControl "5400+30"]

{[%evp 13,79,33,37,11,6,0,0,8,4,5,10,0,0,0,0,0,0,0,0,-28,-24,-27,-16,-31,-26,-52,-47,-45,-29,-42,-33,-35,-10,-30,-9,-12,-16,-36,-22,-30,-34,-37,-29,-31,-33,-43,-33,-55,8,-8,-8,0,-8,-6,0,0,0,0,0,0,0,0,0,0,0,0,0,-4]} 1. e4 {[%emt 0:01:53]} d5 {[%emt 0:00:06]} 2. exd5 {[%emt 0:01:03]} Nf6 {[%emt 0:00:08]} 3. d4 {[%emt 0:04:18]} Bg4 {[%emt 0:00:07]} 4. Be2 {[%emt 0:04:23]} Bxe2 {[%emt 0:00:08]} 5. Qxe2 {[%emt 0:00:03]} Qxd5 {[%emt 0:00:07]} 6. Nf3 {[%emt 0:00:11]} e6 $1 {[%emt 0:00:06] 6...e6 is better than 6...Nc6.} 7. O-O {[%emt 0:02:37]} Bd6 {[%emt 0:00:18]} 8. Nc3 {[%emt 0:03:13] B01: Scandinavian Defence.} Qh5 {[%emt 0:01:45]} 9. Qb5+ {[%emt 0:03:46]} Qxb5 {[%emt 0:07:40]} 10. Nxb5 {[%emt 0:00:04]} Nc6 {[%emt 0:00:20] [#]} 11. c4 $146 {[%emt 0:04:33]} ({Predecessor:} 11. c3 h6 12. Re1 O-O-O 13. Nxd6+ {½-½ Glatt,G (2224)-Barle,J (2225) EU-ch Seniors 65 19th 2019 (4)}) 11... O-O-O {[%emt 0:19:18]} 12. Bg5 {[%emt 0:02:30]} a6 {[%emt 0:02:44]} 13. Nc3 {[%emt 0:04:10]} Be7 {[%emt 0:05:22]} 14. Rfd1 {[%emt 0:01:51]} h6 {[%emt 0:01:17]} 15. Be3 {[%emt 0:03:16]} Ng4 {[%emt 0:07:48]} 16. h3 {[%emt 0:04:32]} Nxe3 {[%emt 0:00:36]} 17. fxe3 {[%emt 0:00:05]} f5 {[%emt 0:02:28]} 18. Ne2 {[%emt 0:08:58]} g5 {[%emt 0:09:08] Against Nf4} 19. Ne1 {[%emt 0:03:17]} Bf6 {[%emt 0:00:44]} 20. Nc2 {[%emt 0:01:09]} Rhe8 {[%emt 0:02:51]} 21. Rab1 {[%emt 0:03:48]} Ne7 {[%emt 0:03:09]} 22. a4 {[%emt 0:04:36]} Rd7 {[%emt 0:08:36]} 23. a5 {[%emt 0:07:02] [#]} c5 $1 {[%emt 0:00:39]} 24. b4 {[%emt 0:01:22]} ({But not} 24. dxc5 Rxd1+ 25. Rxd1 Bxb2 $17) 24... cxd4 {[%emt 0:02:05]} 25. exd4 {[%emt 0:02:32]} Nc6 {[%emt 0:00:42][%cal Be7c6,Bc6a5,Ba5c4][%mdl 32]} 26. b5 {[%emt 0:01:12]} Nxa5 {[%emt 0:05:12]} 27. bxa6 {[%emt 0:05:39]} bxa6 {[%emt 0:02:31]} 28. Rb6 {[%emt 0:03:19]} Nxc4 {[%emt 0:01:03]} 29. Rxa6 {[%emt 0:00:06] [#] Threatens to win with Ra8+.} Kd8 {[%emt 0:01:45]} 30. d5 {[%emt 0:07:30]} exd5 {[%emt 0:02:19]} (30... Rxd5 $15 31. Rxd5+ exd5) 31. Ng3 {[%emt 0:00:16] The position is equal.} f4 {[%emt 0:06:13]} 32. Nf5 $1 {[%emt 0:01:30]} Re2 $1 {[%emt 0:01:08]} 33. Nb4 {[%emt 0:01:09]} Be5 {[%emt 0:02:58]} (33... Rb2 {feels hotter.} 34. Ra8+ Kc7 35. Rxd5 Kb7) 34. Nxd5 {[%emt 0:00:43] Ra8+ would kill now.} Ke8 {[%emt 0:00:39]} 35. Ra8+ {[%emt 0:01:19]} Kf7 {[%emt 0:01:13] ...Ke6 would be deadly.} 36. Nxh6+ {[%emt 0:01:18] A dynamic duo of knights.} Kg7 {[%emt 0:00:52]} 37. Nf5+ {[%emt 0:02:41]} Kf7 {[%emt 0:00:05]} 38. Nh6+ $1 {[%emt 0:02:27]} Kg7 {[%emt 0:00:05]} 39. Nf5+ {[%emt 0:02:10]} Kf7 {[%emt 0:00:01] Threatening ...Ke6.} 40. Nh6+ $1 {[%emt 0:00:44] Weighted Error Value: White=0.06 (flawless) /Black=0.06 (flawless)} 1/2-1/2

[Event "28th Bosnjaci Open 2024"]
[Site "Bosnjaci"]
[Date "2024.01.09"]
[Round "9.6"]
[White "Pavic, Filip"]
[Black "Kovacevic, Blazimir"]
[Result "0-1"]
[ECO "C10"]
[WhiteElo "2261"]
[BlackElo "2381"]
[Annotator "RC"]
[PlyCount "84"]
[EventDate "2024.01.02"]
[EventType "swiss"]
[EventCountry "CRO"]
[SourceTitle "playchess.com"]
[Source "ChessBase"]
[SourceQuality "1"]
[TimeControl "5400+30"]

1. e4 {[%emt 0:00:03]} e6 {[%emt 0:00:06]} 2. d4 {[%emt 0:00:16]} d5 {[%emt 0:00:06]} 3. Nc3 {[%emt 0:00:09]} Be7 {[%emt 0:00:54]} 4. Nf3 {[%emt 0:04:09]} Nf6 {[%emt 0:00:27]} 5. e5 {[%emt 0:08:44]} Ne4 {[%emt 0:00:47]} 6. Bd3 {[%emt 0:01:36]} Nxc3 {[%emt 0:00:07]} 7. bxc3 {[%emt 0:00:06]} c5 {[%emt 0:01:01]} 8. h4 {[%emt 0:10:55]} h6 {[%emt 0:02:06]} 9. h5 {[%emt 0:14:00]} Qa5 {[%emt 0:05:34]} 10. Bd2 {[%emt 0:01:37]} c4 {[%emt 0:00:37]} 11. Bf1 {[%emt 0:00:27]} Bd7 {[%emt 0:00:33]} 12. Nh4 {[%emt 0:03:02]} Nc6 {[%emt 0:03:45]} 13. Qg4 {[%emt 0:02:14]} Bf8 {[%emt 0:00:31]} 14. Qf4 {[%emt 0:01:59]} Qa3 {[%emt 0:11:40]} 15. Be2 {[%emt 0:06:03]} Qb2 {[%emt 0:04:28]} 16. O-O {[%emt 0:01:55]} Qxc2 {[%emt 0:00:31]} 17. Rfc1 {[%emt 0:06:03]} Qh7 {[%emt 0:02:35]} 18. Bd1 {[%emt 0:01:17]} Be7 {[%emt 0:02:49]} 19. Bc2 {[%emt 0:04:35]} Qg8 {[%emt 0:00:06]} 20. Qh2 {[%emt 0:01:39]} O-O-O {[%emt 0:01:55]} 21. f4 {[%emt 0:00:04]} Kb8 {[%emt 0:04:02]} 22. Rf1 {[%emt 0:02:13]} Ka8 {[%emt 0:11:12]} 23. g4 {[%emt 0:00:48]} Rf8 {[%emt 0:08:45]} 24. Rab1 {[%emt 0:00:47]} g6 {[%emt 0:04:36]} 25. hxg6 {[%emt 0:09:29]} Bxh4 {[%emt 0:00:06]} 26. Qxh4 {[%emt 0:03:12]} fxg6 {[%emt 0:00:06]} 27. Bc1 {[%emt 0:00:53]} g5 {[%emt 0:06:05]} 28. Qg3 {[%emt 0:00:24]} gxf4 {[%emt 0:00:31]} 29. Rxf4 {[%emt 0:04:15]} Rxf4 {[%emt 0:02:03]} 30. Bxf4 {[%emt 0:00:27]} Be8 {[%emt 0:01:23]} 31. Rf1 {[%emt 0:01:03]} Bg6 {[%emt 0:01:09]} 32. Bxg6 {[%emt 0:01:43]} Qxg6 {[%emt 0:00:05]} 33. Bd2 {[%emt 0:00:32]} Rg8 {[%emt 0:02:37]} 34. Rf6 {[%emt 0:02:15]} Qb1+ {[%emt 0:07:16]} 35. Rf1 {[%emt 0:03:07]} Qe4 {[%emt 0:01:52]} 36. Rf4 {[%emt 0:01:28]} Qe2 {[%emt 0:01:31]} 37. Be3 {[%emt 0:01:09]} a5 {[%emt 0:05:22]} 38. Rf2 {[%emt 0:03:03]} Qe1+ {[%emt 0:03:21]} 39. Kg2 {[%emt 0:00:13]} Qxc3 {[%emt 0:00:48]} 40. Bxh6 {[%emt 0:01:14]} Qxd4 {[%emt 0:00:49]} 41. Bf4 {[%emt 0:01:04]} Qe4+ {[%emt 0:00:47]} 42. Rf3 {[%emt 0:00:46]} Nd4 {[%emt 0:00:20]} 0-1

[Event "28th Bosnjaci Open 2024"]
[Site "Bosnjaci"]
[Date "2024.01.09"]
[Round "9.7"]
[White "Damjanovic, Stjepan"]
[Black "Zufic, Miroslav"]
[Result "0-1"]
[ECO "B90"]
[WhiteElo "2149"]
[BlackElo "2354"]
[Annotator "RC"]
[PlyCount "60"]
[EventDate "2024.01.02"]
[EventType "swiss"]
[EventCountry "CRO"]
[SourceTitle "playchess.com"]
[Source "ChessBase"]
[SourceQuality "1"]
[TimeControl "5400+30"]

1. e4 {[%emt 0:00:10]} c5 {[%emt 0:00:11]} 2. Nf3 {[%emt 0:00:32]} d6 {[%emt 0:00:21]} 3. d4 {[%emt 0:00:51]} cxd4 {[%emt 0:00:08]} 4. Nxd4 {[%emt 0:00:09]} Nf6 {[%emt 0:00:05]} 5. Nc3 {[%emt 0:00:41]} a6 {[%emt 0:00:05]} 6. Be3 {[%emt 0:00:58]} e5 {[%emt 0:00:53]} 7. Nb3 {[%emt 0:00:17]} Be6 {[%emt 0:02:53]} 8. f3 {[%emt 0:02:03]} h5 {[%emt 0:01:29]} 9. Qd2 {[%emt 0:04:47]} Nbd7 {[%emt 0:00:34]} 10. Nd5 {[%emt 0:14:04]} Bxd5 {[%emt 0:02:18]} 11. exd5 {[%emt 0:00:06]} a5 {[%emt 0:21:01]} 12. a4 {[%emt 0:03:17]} Be7 {[%emt 0:01:09]} 13. Bb5 {[%emt 0:09:43]} O-O {[%emt 0:01:08]} 14. c4 {[%emt 0:10:11]} Nc5 {[%emt 0:12:11]} 15. Nxc5 {[%emt 0:03:22]} dxc5 {[%emt 0:00:07]} 16. O-O-O {[%emt 0:01:28]} Qd6 {[%emt 0:08:25]} 17. h4 {[%emt 0:16:49]} Ne8 {[%emt 0:06:11]} 18. g4 {[%emt 0:04:37]} hxg4 {[%emt 0:03:43]} 19. fxg4 {[%emt 0:02:30]} Nc7 {[%emt 0:00:25]} 20. Rdf1 {[%emt 0:04:01]} Nxb5 {[%emt 0:01:17]} 21. axb5 {[%emt 0:00:04]} a4 {[%emt 0:01:16]} 22. g5 {[%emt 0:07:22]} a3 {[%emt 0:06:43]} 23. b3 {[%emt 0:00:07]} f5 {[%emt 0:03:31]} 24. gxf6 {[%emt 0:02:36]} Rxf6 {[%emt 0:10:10]} 25. Bg5 {[%emt 0:02:31]} e4 {[%emt 0:03:38]} 26. Kb1 {[%emt 0:02:36]} a2+ {[%emt 0:03:49]} 27. Ka1 {[%emt 0:00:03]} Qe5+ {[%emt 0:02:29]} 28. Qb2 {[%emt 0:00:04]} Rxf1+ {[%emt 0:00:16]} 29. Rxf1 {[%emt 0:00:05]} Qxb2+ {[%emt 0:00:30]} 30. Kxb2 {[%emt 0:00:02]} Bxg5 {[%emt 0:00:00]} 0-1